[Event "2nd Goa GM Open 2019"]
[Site "Goa"]
[Date "2019.06.23"]
[Round "8.30"]
[White "Srija, Seshadri"]
[Black "Bharath Subramaniyam H"]
[Result "1/2-1/2"]
[ECO "B41"]
[WhiteElo "2174"]
[BlackElo "2383"]
[Annotator "NA"]
[PlyCount "106"]
[EventDate "2019.06.17"]
[EventType "swiss"]
[EventCountry "IND"]
[SourceTitle "playchess.com"]
[Source "ChessBase"]
[SourceQuality "1"]
[TimeControl "5400+30"]

1. e4 {[%emt 0:00:00]} c5 {[%emt 0:00:01]} 2. Nf3 {[%emt 0:00:00]} e6 {[%emt 0:00:09]} 3. d4 {[%emt 0:00:00]} cxd4 {[%emt 0:00:09]} 4. Nxd4 {[%emt 0:00:00]} a6 {[%emt 0:00:11]} 5. c4 {[%emt 0:00:15]} Nf6 {[%emt 0:00:43]} 6. Nc3 {[%emt 0:00:15]} Qc7 {[%emt 0:00:36]} 7. a3 {[%emt 0:00:29]} Be7 {[%emt 0:02:07]} 8. Be3 {[%emt 0:00:35]} b6 {[%emt 0:02:13]} 9. Be2 {[%emt 0:02:28]} Bb7 {[%emt 0:00:10]} 10. f3 {[%emt 0:00:16]} O-O {[%emt 0:00:39]} 11. O-O {[%emt 0:00:15]} d6 {[%emt 0:00:43]} 12. Rc1 {[%emt 0:00:38]} Nbd7 {[%emt 0:00:11]} 13. b4 {[%emt 0:00:12]} Rac8 {[%emt 0:00:29]} 14. Qd2 {[%emt 0:00:24]} Qb8 {[%emt 0:01:35]} 15. Rfd1 {[%emt 0:00:47]} Rfe8 {[%emt 0:02:30]} 16. Na4 {[%emt 0:02:10]} h5 {[%emt 0:08:32]} 17. Qe1 {[%emt 0:12:53]} d5 {[%emt 0:12:53]} 18. cxd5 {[%emt 0:11:21]} exd5 {[%emt 0:00:32]} 19. Rxc8 {[%emt 0:00:46]} Rxc8 {[%emt 0:00:13]} 20. Nf5 {[%emt 0:01:02]} Bf8 {[%emt 0:00:24]} 21. Nxb6 {[%emt 0:11:38]} Nxb6 {[%emt 0:00:39]} 22. Bxb6 {[%emt 0:01:56]} dxe4 {[%emt 0:00:40]} 23. Qg3 {[%emt 0:00:59]} exf3 {[%emt 0:02:42]} 24. gxf3 {[%emt 0:07:06]} Qxg3+ {[%emt 0:10:52]} 25. hxg3 {[%emt 0:00:24]} Rc2 {[%emt 0:00:35]} 26. Kf2 {[%emt 0:10:21]} Nd5 {[%emt 0:03:41]} 27. Bd4 {[%emt 0:04:59]} Ra2 28. Ra1 Rc2 {[%emt 0:03:08]} 29. Ne3 {[%emt 0:08:55]} Nxe3 {[%emt 0:04:57]} 30. Kxe3 {[%emt 0:00:29]} Be7 {[%emt 0:05:46]} 31. Kd3 {[%emt 0:04:15]} Rc6 {[%emt 0:03:18]} 32. Ke3 {[%emt 0:03:42]} Rg6 {[%emt 0:03:47]} 33. Rc1 {[%emt 0:02:53]} Bd6 {[%emt 0:00:54]} 34. Rh1 {[%emt 0:02:35]} Rg5 {[%emt 0:00:15]} 35. Rh3 {[%emt 0:02:07]} Bc8 {[%emt 0:02:18]} 36. f4 {[%emt 0:00:28]} Rg6 {[%emt 0:01:09]} 37. Rxh5 {[%emt 0:00:33]} Rxg3+ {[%emt 0:00:59]} 38. Kf2 {[%emt 0:00:01]} Bxf4 {[%emt 0:01:48]} 39. Rd5 {[%emt 0:03:24]} Be6 {[%emt 0:03:18]} 40. Ra5 {[%emt 0:01:10]} Rb3 {[%emt 0:03:19]} 41. Bxa6 {[%emt 0:01:16]} Bc1 {[%emt 0:00:12]} 42. Bb7 {[%emt 0:02:38]} Rxa3 {[%emt 0:01:40]} 43. Rxa3 {[%emt 0:00:23]} Bxa3 {[%emt 0:00:02]} 44. b5 {[%emt 0:00:12]} Bd6 {[%emt 0:00:10]} 45. Ke3 {[%emt 0:00:57]} f5 {[%emt 0:00:21]} 46. Ba7 {[%emt 0:01:01]} g5 {[%emt 0:00:20]} 47. Kd4 {[%emt 0:00:48]} f4 {[%emt 0:00:33]} 48. b6 {[%emt 0:01:32]} g4 {[%emt 0:05:46]} 49. Bd5 {[%emt 0:00:25]} Kf7 {[%emt 0:00:40]} 50. b7 {[%emt 0:00:28]} f3 {[%emt 0:01:35]} 51. Bxf3 {[%emt 0:01:06]} gxf3 {[%emt 0:00:10]} 52. Ke3 {[%emt 0:00:05]} Bd5 {[%emt 0:00:17]} 53. b8=Q {[%emt 0:00:06]} Bxb8 {[%emt 0:00:07] Ke4} 1/2-1/2

[Event "2nd Goa GM Open 2019"]
[Site "Goa"]
[Date "2019.06.24"]
[Round "9.3"]
[White "Rahman, Ziaur"]
[Black "Ter-Sahakyan, Samvel"]
[Result "0-1"]
[ECO "A06"]
[WhiteElo "2481"]
[BlackElo "2611"]
[Annotator "RC"]
[PlyCount "110"]
[EventDate "2019.06.17"]
[EventType "swiss"]
[EventCountry "IND"]
[SourceTitle "playchess.com"]
[Source "ChessBase"]
[SourceQuality "1"]
[TimeControl "5400+30"]

1. Nf3 {[%emt 0:00:00]} d5 {[%emt 0:00:00]} 2. g3 {[%emt 0:01:35]} g6 {[%emt 0:00:06]} 3. Bg2 {[%emt 0:00:57]} Bg7 {[%emt 0:00:05]} 4. O-O {[%emt 0:00:57]} e5 {[%emt 0:00:27]} 5. d3 {[%emt 0:00:20]} Ne7 {[%emt 0:00:09]} 6. e4 {[%emt 0:01:04]} O-O {[%emt 0:04:39]} 7. Nc3 {[%emt 0:12:08]} d4 {[%emt 0:02:57]} 8. Ne2 {[%emt 0:03:52]} c5 {[%emt 0:00:06]} 9. Nd2 {[%emt 0:08:15]} Nbc6 {[%emt 0:01:57]} 10. f4 {[%emt 0:00:13]} exf4 {[%emt 0:10:31]} 11. Nxf4 {[%emt 0:01:04]} Ne5 {[%emt 0:01:25]} 12. h3 {[%emt 0:03:32]} b6 {[%emt 0:08:47]} 13. Nf3 {[%emt 0:02:25]} Bb7 {[%emt 0:00:05]} 14. Nxe5 {[%emt 0:01:06]} Bxe5 {[%emt 0:00:05]} 15. Ne2 {[%emt 0:02:40]} Bg7 {[%emt 0:14:05]} 16. g4 {[%emt 0:12:25]} Nc6 {[%emt 0:13:45]} 17. Nf4 {[%emt 0:02:08]} Ne5 {[%emt 0:00:21]} 18. Nd5 {[%emt 0:01:15]} Bxd5 {[%emt 0:11:59]} 19. exd5 {[%emt 0:00:07]} Qd7 {[%emt 0:00:01]} 20. Bf4 {[%emt 0:01:58]} f5 {[%emt 0:00:50]} 21. gxf5 {[%emt 0:05:07]} Rxf5 {[%emt 0:01:12]} 22. Qd2 {[%emt 0:08:16]} Raf8 {[%emt 0:06:34]} 23. Rae1 {[%emt 0:01:51]} Nf7 {[%emt 0:01:30]} 24. Qe2 {[%emt 0:03:28]} Be5 {[%emt 0:02:45]} 25. Bd2 {[%emt 0:03:56]} Nd6 {[%emt 0:00:58]} 26. Rxf5 {[%emt 0:02:12]} Rxf5 {[%emt 0:00:03]} 27. b3 {[%emt 0:01:34]} Qf7 {[%emt 0:03:47]} 28. a4 {[%emt 0:06:10]} a5 {[%emt 0:01:44]} 29. Qg4 {[%emt 0:00:56]} h5 {[%emt 0:00:54]} 30. Qd1 {[%emt 0:01:30]} Qf6 {[%emt 0:02:18]} 31. Qe2 {[%emt 0:01:30]} Kh7 {[%emt 0:03:50]} 32. Rf1 {[%emt 0:02:37]} Bf4 {[%emt 0:01:19]} 33. Bxf4 {[%emt 0:00:46]} Rxf4 {[%emt 0:00:03]} 34. Rxf4 {[%emt 0:02:21]} Qxf4 {[%emt 0:00:04]} 35. Qe7+ {[%emt 0:01:41]} Kh6 {[%emt 0:00:04]} 36. h4 {[%emt 0:01:13]} Qe3+ {[%emt 0:05:37]} 37. Qxe3+ {[%emt 0:00:06]} dxe3 {[%emt 0:00:01]} 38. Kf1 {[%emt 0:01:17]} g5 {[%emt 0:00:39]} 39. Ke2 {[%emt 0:00:25]} Nf5 {[%emt 0:01:12]} 40. c3 {[%emt 0:02:39]} Nxh4 {[%emt 0:01:00]} 41. Be4 {[%emt 0:00:16]} Kg7 {[%emt 0:00:06]} 42. Kxe3 {[%emt 0:00:36]} Kf6 {[%emt 0:00:11]} 43. Kf2 {[%emt 0:01:08]} Ke5 {[%emt 0:01:53]} 44. Kg3 {[%emt 0:00:28]} Nf5+ {[%emt 0:00:42]} 45. Bxf5 {[%emt 0:00:05]} Kxf5 {[%emt 0:00:01]} 46. c4 {[%emt 0:00:16]} Kf6 {[%emt 0:00:25]} 47. Kf3 {[%emt 0:00:23]} Ke5 {[%emt 0:00:11]} 48. Kg3 {[%emt 0:00:08]} Kf5 {[%emt 0:00:04]} 49. Kf3 {[%emt 0:00:19]} h4 {[%emt 0:00:09]} 50. Kg2 {[%emt 0:00:05]} g4 {[%emt 0:00:12]} 51. Kh2 {[%emt 0:00:19]} g3+ {[%emt 0:00:30]} 52. Kh3 {[%emt 0:01:11]} Kg5 {[%emt 0:00:04]} 53. Kg2 {[%emt 0:00:25]} Kg4 {[%emt 0:00:44]} 54. d6 {[%emt 0:00:27]} h3+ {[%emt 0:00:03]} 55. Kh1 {[%emt 0:00:42]} Kf3 {[%emt 0:00:13]} 0-1

[Event "2nd Goa GM Open 2019"]
[Site "Goa"]
[Date "2019.06.24"]
[Round "9.18"]
[White "Nguyen, Van Huy"]
[Black "Matta, Vinay Kumar"]
[Result "0-1"]
[ECO "E92"]
[WhiteElo "2456"]
[BlackElo "2181"]
[Annotator "ChessBase"]
[PlyCount "96"]
[EventDate "2019.06.17"]
[EventType "swiss"]
[EventCountry "IND"]
[SourceTitle "playchess.com"]
[Source "ChessBase"]
[SourceQuality "1"]
[TimeControl "5400+30"]

1. d4 {[%emt 0:00:00]} Nf6 {[%emt 0:10:03]} 2. c4 {[%emt 0:01:49]} g6 {[%emt 0:00:05]} 3. Nc3 {[%emt 0:00:25]} Bg7 {[%emt 0:00:05]} 4. e4 {[%emt 0:00:05]} d6 {[%emt 0:00:03]} 5. Nf3 {[%emt 0:00:31]} O-O {[%emt 0:00:08]} 6. Be2 {[%emt 0:00:06]} e5 {[%emt 0:00:04]} 7. Be3 {[%emt 0:00:34]} Ng4 {[%emt 0:00:16]} 8. Bg5 {[%emt 0:00:11]} f6 {[%emt 0:00:06]} 9. Bh4 {[%emt 0:01:02]} g5 {[%emt 0:01:11]} 10. Bg3 {[%emt 0:00:24]} Nh6 {[%emt 0:00:12]} 11. dxe5 {[%emt 0:06:58]} dxe5 {[%emt 0:00:54]} 12. Qd5+ {[%emt 0:00:34]} Nf7 {[%emt 0:00:26]} 13. Rd1 {[%emt 0:06:29]} Qe7 {[%emt 0:00:44]} 14. Qa5 {[%emt 0:03:24]} c6 {[%emt 0:01:34]} 15. h4 {[%emt 0:03:48]} g4 {[%emt 0:10:25]} 16. Nh2 {[%emt 0:02:08]} h5 {[%emt 0:02:33]} 17. f3 {[%emt 0:05:54]} Nh6 {[%emt 0:01:12]} 18. Bf2 {[%emt 0:03:49]} Na6 {[%emt 0:05:29]} 19. Nf1 {[%emt 0:04:30]} Be6 {[%emt 0:10:03]} 20. Ng3 {[%emt 0:05:19]} Bf7 {[%emt 0:04:46]} 21. Nf1 {[%emt 0:00:00]} Be6 {[%emt 0:00:00]} 22. Ng3 {[%emt 0:01:00]} Bf7 {[%emt 0:01:00]} 23. Be3 {[%emt 0:02:57]} Be6 {[%emt 0:00:00]} 24. Bf2 {[%emt 0:00:00]} Bf7 {[%emt 0:01:00]} 25. Be3 {[%emt 0:01:00]} Bg6 {[%emt 0:05:54]} 26. fxg4 {[%emt 0:06:22]} hxg4 {[%emt 0:01:31]} 27. O-O {[%emt 0:01:26]} Kh8 {[%emt 0:16:07]} 28. Nf5 {[%emt 0:05:54]} Bxf5 {[%emt 0:05:03]} 29. exf5 {[%emt 0:00:30]} Rfd8 {[%emt 0:01:48]} 30. Rxd8+ {[%emt 0:04:16]} Rxd8 {[%emt 0:02:52]} 31. Ne4 {[%emt 0:00:30]} Rd4 {[%emt 0:02:58]} 32. Ng3 {[%emt 0:18:15]} Nf7 {[%emt 0:10:14]} 33. Bxd4 {[%emt 0:01:09]} exd4 {[%emt 0:00:07]} 34. Bxg4 {[%emt 0:00:05]} Qe3+ {[%emt 0:00:45]} 35. Kh2 {[%emt 0:00:23]} Bf8 {[%emt 0:01:06]} 36. Bh5 {[%emt 0:04:23]} Bb4 {[%emt 0:01:16]} 37. Qa4 {[%emt 0:00:32]} Bd6 {[%emt 0:00:31]} 38. Rf3 {[%emt 0:02:42]} Qh6 {[%emt 0:00:10]} 39. Bxf7 {[%emt 0:00:44]} Qxh4+ {[%emt 0:00:08]} 40. Kg1 {[%emt 0:00:01]} Bxg3 {[%emt 0:00:12]} 41. Rxg3 {[%emt 0:02:35]} Qxg3 {[%emt 0:00:06]} 42. Qd1 {[%emt 0:00:14]} Kg7 {[%emt 0:01:06]} 43. Be6 {[%emt 0:01:41]} Qe3+ {[%emt 0:01:08]} 44. Kh1 {[%emt 0:00:07]} d3 {[%emt 0:00:55]} 45. Qg4+ {[%emt 0:01:04]} Qg5 {[%emt 0:00:44]} 46. Qd4 {[%emt 0:00:14]} d2 {[%emt 0:00:31]} 47. g4 {[%emt 0:01:01]} Nc5 {[%emt 0:00:44]} 48. Kg2 {[%emt 0:01:00]} Nd3 {[%emt 0:00:32]} 0-1

[Event "2nd Goa GM Open 2019"]
[Site "Goa"]
[Date "2019.06.24"]
[Round "9.22"]
[White "Malakhatko, Vadim"]
[Black "Rathnakaran, K.."]
[Result "*"]
[ECO "A20"]
[WhiteElo "2505"]
[BlackElo "2338"]
[Annotator "RC"]
[PlyCount "73"]
[EventDate "2019.06.17"]
[EventType "swiss"]
[EventCountry "IND"]
[SourceTitle "playchess.com"]
[Source "ChessBase"]
[SourceQuality "1"]
[TimeControl "5400+30"]

1. c4 {[%emt 0:00:00]} e5 {[%emt 0:00:00]} 2. e3 {[%emt 0:00:00]} d6 {[%emt 0:00:00]} 3. Nc3 {[%emt 0:00:21]} Nd7 {[%emt 0:00:00]} 4. g3 {[%emt 0:00:50]} Ngf6 {[%emt 0:00:02]} 5. Bg2 {[%emt 0:00:25]} Be7 {[%emt 0:00:05]} 6. Nge2 {[%emt 0:00:12]} c6 {[%emt 0:00:05]} 7. O-O {[%emt 0:00:18]} h5 {[%emt 0:00:03]} 8. h3 {[%emt 0:01:27]} Nb6 {[%emt 0:00:04]} 9. b3 {[%emt 0:02:29]} d5 {[%emt 0:00:04]} 10. cxd5 {[%emt 0:00:11]} cxd5 {[%emt 0:00:04]} 11. Bb2 {[%emt 0:00:05]} Be6 {[%emt 0:00:08]} 12. f4 {[%emt 0:03:28]} d4 {[%emt 0:01:05]} 13. exd4 {[%emt 0:05:19]} exd4 {[%emt 0:00:05]} 14. Nb5 {[%emt 0:00:38]} d3 {[%emt 0:02:51]} 15. Ned4 {[%emt 0:00:17]} a6 {[%emt 0:01:16]} 16. Nxe6 {[%emt 0:06:06]} fxe6 {[%emt 0:00:04]} 17. Nc3 {[%emt 0:00:23]} Nbd5 {[%emt 0:00:48]} 18. Nxd5 {[%emt 0:00:49]} Nxd5 {[%emt 0:02:04]} 19. Bxg7 {[%emt 0:00:29]} Rg8 {[%emt 0:02:15]} 20. Qxh5+ {[%emt 0:00:51]} Kd7 {[%emt 0:00:03]} 21. Be5 {[%emt 0:13:11]} Rxg3 {[%emt 0:00:09]} 22. Kh2 {[%emt 0:00:06]} Rxg2+ {[%emt 0:00:12]} 23. Kxg2 {[%emt 0:00:06]} Qa5 {[%emt 0:00:04]} 24. Rad1 {[%emt 0:06:19]} Qxa2 {[%emt 0:00:11]} 25. Kh1 {[%emt 0:00:05]} Nb4 {[%emt 0:01:05]} 26. Qf3 {[%emt 0:05:02]} Rd8 {[%emt 0:00:02]} 27. Qxb7+ {[%emt 0:01:17]} Ke8 {[%emt 0:00:03]} 28. Rg1 {[%emt 0:00:09]} Qxb3 {[%emt 0:00:07]} 29. Rg8+ {[%emt 0:01:13]} Bf8 {[%emt 0:00:04]} 30. Rdg1 {[%emt 0:02:22]} Qd5+ {[%emt 0:00:05]} 31. Qxd5 {[%emt 0:00:07]} Nxd5 {[%emt 0:00:02]} 32. h4 {[%emt 0:02:22]} Kd7 {[%emt 0:02:40]} 33. h5 {[%emt 0:00:45]} Bh6 {[%emt 0:00:26]} 34. Rxd8+ {[%emt 0:00:07]} Kxd8 {[%emt 0:00:04]} 35. Rg6 {[%emt 0:00:41]} Bxf4 {[%emt 0:00:55]} 36. Bxf4 {[%emt 0:00:15]} Nxf4 {[%emt 0:00:02]} 37. Rg8+ {[%emt 0:00:08]} *

[Event "2nd Goa GM Open 2019"]
[Site "Goa"]
[Date "2019.06.25"]
[Round "10.1"]
[White "Paichadze, Luka"]
[Black "Petrosyan, Manuel"]
[Result "1/2-1/2"]
[ECO "B22"]
[WhiteElo "2557"]
[BlackElo "2573"]
[Annotator "ChessBase"]
[PlyCount "79"]
[EventDate "2019.06.17"]
[EventType "swiss"]
[EventCountry "IND"]
[SourceTitle "playchess.com"]
[Source "ChessBase"]
[SourceQuality "1"]
[TimeControl "5400+30"]

1. e4 {[%emt 0:00:00]} c5 {[%emt 0:00:59]} 2. c3 {[%emt 0:00:48]} d5 {[%emt 0:02:17]} 3. exd5 {[%emt 0:00:08]} Qxd5 {[%emt 0:00:07]} 4. d4 {[%emt 0:00:05]} Nc6 {[%emt 0:00:16]} 5. Nf3 {[%emt 0:00:06]} Bf5 {[%emt 0:00:37]} 6. Be3 {[%emt 0:02:30]} cxd4 {[%emt 0:00:06]} 7. cxd4 {[%emt 0:02:11]} Bxb1 {[%emt 0:00:18]} 8. Rxb1 {[%emt 0:10:07]} e6 {[%emt 0:00:04]} 9. a3 {[%emt 0:00:17]} Nf6 {[%emt 0:00:05]} 10. Bd3 {[%emt 0:02:38]} Bd6 {[%emt 0:00:10]} 11. O-O {[%emt 0:00:49]} O-O {[%emt 0:00:04]} 12. Re1 {[%emt 0:04:30]} Rac8 {[%emt 0:05:13]} 13. Qe2 {[%emt 0:09:23]} h6 {[%emt 0:04:50]} 14. Rbd1 {[%emt 0:02:55]} a6 {[%emt 0:00:45]} 15. Bb1 {[%emt 0:08:22]} Ne7 {[%emt 0:05:51]} 16. Ne5 {[%emt 0:07:18]} Bxe5 {[%emt 0:20:37]} 17. dxe5 {[%emt 0:00:14]} Qxe5 {[%emt 0:00:05]} 18. Qf3 {[%emt 0:00:15]} Qxb2 {[%emt 0:02:36]} 19. Bd4 {[%emt 0:00:25]} Qb5 {[%emt 0:00:10]} 20. Bxf6 {[%emt 0:00:37]} gxf6 {[%emt 0:00:08]} 21. Qxf6 {[%emt 0:01:22]} Qg5 {[%emt 0:00:06]} 22. Qf3 {[%emt 0:03:34]} Rfd8 {[%emt 0:01:43]} 23. Rxd8+ {[%emt 0:07:26]} Rxd8 {[%emt 0:00:04]} 24. Qxb7 {[%emt 0:03:15]} Qe5 {[%emt 0:02:06]} 25. Qb4 {[%emt 0:06:30]} a5 {[%emt 0:03:12]} 26. Qg4+ {[%emt 0:00:10]} Qg5 {[%emt 0:00:37]} 27. Qe4 {[%emt 0:00:27]} Ng6 {[%emt 0:00:05]} 28. g3 {[%emt 0:00:35]} Rd5 {[%emt 0:02:08]} 29. Qc2 {[%emt 0:07:09]} Kg7 {[%emt 0:01:17]} 30. Rd1 {[%emt 0:02:44]} Rxd1+ {[%emt 0:04:03]} 31. Qxd1 {[%emt 0:00:03]} Qc5 {[%emt 0:00:48]} 32. Qd3 {[%emt 0:04:10]} f5 {[%emt 0:00:11]} 33. Qd7+ {[%emt 0:01:24]} Kf6 {[%emt 0:00:05]} 34. Ba2 {[%emt 0:02:28]} Nf8 {[%emt 0:00:06]} 35. Qd8+ {[%emt 0:01:00]} Kf7 {[%emt 0:01:47]} 36. Qd3 {[%emt 0:00:11]} Ke7 {[%emt 0:00:41]} 37. Qb3 {[%emt 0:01:23]} Qe5 {[%emt 0:10:56]} 38. Qb1 {[%emt 0:00:13]} Qc3 {[%emt 0:01:08]} 39. a4 {[%emt 0:00:39]} Nd7 {[%emt 0:00:24]} 40. Qd1 {[%emt 0:03:35]} 1/2-1/2

[Event "2nd Goa GM Open 2019"]
[Site "Goa"]
[Date "2019.06.25"]
[Round "10.6"]
[White "Aleksandrov, Aleksej"]
[Black "Rahman, Ziaur"]
[Result "0-1"]
[ECO "D31"]
[WhiteElo "2588"]
[BlackElo "2481"]
[Annotator "ChessBase"]
[PlyCount "100"]
[EventDate "2019.06.17"]
[EventType "swiss"]
[EventCountry "IND"]
[SourceTitle "playchess.com"]
[Source "ChessBase"]
[SourceQuality "1"]
[TimeControl "5400+30"]

1. d4 {[%emt 0:00:12]} d5 {[%emt 0:00:00]} 2. c4 {[%emt 0:00:04]} e6 {[%emt 0:00:03]} 3. Nc3 {[%emt 0:00:03]} c6 {[%emt 0:00:15]} 4. e3 {[%emt 0:01:46]} Bd6 {[%emt 0:00:22]} 5. Qc2 {[%emt 0:04:11]} f5 {[%emt 0:01:50]} 6. Bd2 {[%emt 0:00:07]} Nf6 {[%emt 0:00:40]} 7. f3 {[%emt 0:11:39]} O-O {[%emt 0:00:52]} 8. O-O-O {[%emt 0:00:03]} Nbd7 {[%emt 0:05:10]} 9. cxd5 {[%emt 0:03:48]} Nxd5 {[%emt 0:03:11]} 10. e4 {[%emt 0:00:27]} Nxc3 {[%emt 0:05:56]} 11. Bxc3 {[%emt 0:01:27]} Kh8 {[%emt 0:01:37]} 12. Nh3 {[%emt 0:02:03]} Nb6 {[%emt 0:03:25]} 13. Kb1 {[%emt 0:08:33]} Bd7 {[%emt 0:01:23]} 14. e5 {[%emt 0:01:06]} Be7 {[%emt 0:00:48]} 15. Nf4 {[%emt 0:02:17]} Qe8 {[%emt 0:05:39]} 16. h4 {[%emt 0:01:35]} Nd5 {[%emt 0:05:53]} 17. Bd2 {[%emt 0:01:06]} Rc8 {[%emt 0:01:51]} 18. Bc4 {[%emt 0:04:31]} Nxf4 {[%emt 0:14:43]} 19. Bxf4 {[%emt 0:00:04]} b5 {[%emt 0:01:01]} 20. Bb3 {[%emt 0:00:07]} a5 {[%emt 0:01:00]} 21. a3 {[%emt 0:00:05]} a4 {[%emt 0:02:57]} 22. Ba2 {[%emt 0:00:05]} b4 {[%emt 0:02:30]} 23. axb4 {[%emt 0:00:35]} Bxb4 {[%emt 0:00:29]} 24. Bc4 {[%emt 0:12:29]} Ra8 {[%emt 0:02:14]} 25. Ka2 {[%emt 0:00:53]} Qf7 {[%emt 0:01:23]} 26. Rhf1 {[%emt 0:03:13]} Qh5 {[%emt 0:04:01]} 27. Bg5 {[%emt 0:02:37]} Rfb8 {[%emt 0:05:56]} 28. Rg1 {[%emt 0:03:19]} Qe8 {[%emt 0:01:29]} 29. g4 {[%emt 0:00:09]} Bf8 {[%emt 0:01:23]} 30. h5 {[%emt 0:00:06]} Rb3 {[%emt 0:05:01]} 31. h6 {[%emt 0:08:39]} Rab8 {[%emt 0:01:20]} 32. hxg7+ {[%emt 0:03:29]} Bxg7 {[%emt 0:00:04]} 33. Bc1 {[%emt 0:00:06]} Qf8 {[%emt 0:02:48]} 34. Rh1 {[%emt 0:02:39]} c5 {[%emt 0:03:59]} 35. dxc5 {[%emt 0:07:53]} Be8 {[%emt 0:01:54]} 36. Bxe6 {[%emt 0:01:15]} Bxe5 {[%emt 0:00:30]} 37. Qxf5 {[%emt 0:03:27]} Rxb2+ {[%emt 0:01:02]} 38. Bxb2 {[%emt 0:00:06]} Rxb2+ {[%emt 0:00:04]} 39. Ka1 {[%emt 0:00:09]} Re2+ {[%emt 0:01:21]} 40. Kb1 {[%emt 0:00:38]} Bg6 {[%emt 0:00:22]} 41. Rd7 {[%emt 0:01:23]} Bxf5+ {[%emt 0:03:47]} 42. Bxf5 {[%emt 0:00:10]} h6 {[%emt 0:05:38]} 43. Rh7+ {[%emt 0:00:45]} Kg8 {[%emt 0:00:04]} 44. Rb7 {[%emt 0:00:03]} a3 {[%emt 0:01:32]} 45. Be6+ {[%emt 0:00:56]} Kh8 {[%emt 0:00:01]} 46. c6 {[%emt 0:06:03]} Bf4 {[%emt 0:02:54]} 47. Bc4 {[%emt 0:01:55]} Re7 {[%emt 0:00:36]} 48. Ka2 {[%emt 0:00:42]} Rxb7 {[%emt 0:00:29]} 49. cxb7 {[%emt 0:00:04]} Qb4 {[%emt 0:00:14]} 50. b8=R+ {[%emt 0:00:48]} Bxb8 {[%emt 0:00:35]} 0-1

[Event "2nd Goa GM Open 2019"]
[Site "Goa"]
[Date "2019.06.25"]
[Round "10.7"]
[White "Mohammad Nubairshah Shaikh"]
[Black "Stupak, Kirill"]
[Result "1-0"]
[ECO "A04"]
[WhiteElo "2436"]
[BlackElo "2584"]
[Annotator "ChessBase"]
[PlyCount "61"]
[EventDate "2019.06.17"]
[EventType "swiss"]
[EventCountry "IND"]
[SourceTitle "playchess.com"]
[Source "ChessBase"]
[SourceQuality "1"]
[TimeControl "5400+30"]

1. Nf3 {[%emt 0:00:00]} c5 {[%emt 0:00:00]} 2. c4 {[%emt 0:00:00]} g6 {[%emt 0:00:11]} 3. g3 {[%emt 0:01:47]} Bg7 {[%emt 0:00:23]} 4. Bg2 {[%emt 0:00:02]} Nc6 {[%emt 0:00:30]} 5. O-O {[%emt 0:04:30]} e6 {[%emt 0:07:58]} 6. Nc3 {[%emt 0:00:24]} Nge7 {[%emt 0:00:26]} 7. d3 {[%emt 0:17:28]} O-O {[%emt 0:01:51]} 8. Bf4 {[%emt 0:11:56]} d5 {[%emt 0:07:32]} 9. cxd5 {[%emt 0:12:20]} exd5 {[%emt 0:01:15]} 10. Qd2 {[%emt 0:01:23]} b6 {[%emt 0:00:56]} 11. d4 {[%emt 0:11:21]} Nxd4 {[%emt 0:15:01]} 12. Nxd4 {[%emt 0:00:05]} Bxd4 {[%emt 0:00:10]} 13. Nb5 {[%emt 0:03:40]} Bg7 {[%emt 0:05:46]} 14. Nc7 {[%emt 0:03:09]} Rb8 {[%emt 0:01:34]} 15. Nxd5 {[%emt 0:01:27]} Rb7 {[%emt 0:00:39]} 16. Bg5 {[%emt 0:00:59]} Kh8 {[%emt 0:00:26]} 17. Rad1 {[%emt 0:09:09]} f6 {[%emt 0:00:40]} 18. Nxf6 {[%emt 0:04:08]} Qxd2 {[%emt 0:02:08]} 19. Rxd2 {[%emt 0:00:02]} h6 {[%emt 0:00:31]} 20. Bxb7 {[%emt 0:06:44]} Bxb7 {[%emt 0:00:01]} 21. Rd7 {[%emt 0:00:36]} hxg5 {[%emt 0:00:06]} 22. Rxe7 {[%emt 0:00:10]} Ba6 {[%emt 0:00:09]} 23. Nd7 {[%emt 0:06:47]} Rd8 {[%emt 0:00:02]} 24. b3 {[%emt 0:00:24]} Bb5 {[%emt 0:00:05]} 25. Rd1 {[%emt 0:01:37]} g4 {[%emt 0:00:41]} 26. a4 {[%emt 0:00:49]} Bc6 {[%emt 0:00:14]} 27. Rd3 {[%emt 0:00:03]} c4 {[%emt 0:00:06]} 28. bxc4 {[%emt 0:00:12]} Bxa4 {[%emt 0:00:13]} 29. Ne5 {[%emt 0:00:31]} Rc8 {[%emt 0:00:19]} 30. Rxa7 {[%emt 0:00:52]} Be8 {[%emt 0:00:20]} 31. Nf7+ {[%emt 0:00:21]} 1-0

[Event "2nd Goa GM Open 2019"]
[Site "Goa"]
[Date "2019.06.25"]
[Round "10.8"]
[White "Konguvel, Ponnuswamy"]
[Black "Debashis, Das"]
[Result "0-1"]
[ECO "B97"]
[WhiteElo "2293"]
[BlackElo "2544"]
[Annotator "ChessBase"]
[PlyCount "92"]
[EventDate "2019.06.17"]
[EventType "swiss"]
[EventCountry "IND"]
[SourceTitle "playchess.com"]
[Source "ChessBase"]
[SourceQuality "1"]
[TimeControl "5400+30"]

1. e4 {[%emt 0:00:00]} c5 {[%emt 0:00:00]} 2. Nf3 {[%emt 0:00:00]} d6 {[%emt 0:00:00]} 3. d4 {[%emt 0:00:05]} cxd4 {[%emt 0:00:00]} 4. Nxd4 {[%emt 0:00:10]} Nf6 {[%emt 0:00:04]} 5. Nc3 {[%emt 0:00:04]} a6 {[%emt 0:00:03]} 6. Bg5 {[%emt 0:01:05]} e6 {[%emt 0:00:05]} 7. f4 {[%emt 0:00:21]} Qb6 {[%emt 0:00:09]} 8. Qd3 {[%emt 0:01:14]} Nc6 {[%emt 0:00:13]} 9. Bxf6 {[%emt 0:01:41]} gxf6 {[%emt 0:00:05]} 10. Nb3 {[%emt 0:00:20]} Bd7 {[%emt 0:00:06]} 11. O-O-O {[%emt 0:01:46]} O-O-O {[%emt 0:00:16]} 12. Be2 {[%emt 0:06:55]} Rg8 {[%emt 0:04:18]} 13. g3 {[%emt 0:06:21]} Kb8 {[%emt 0:00:25]} 14. Bh5 {[%emt 0:00:57]} Rg7 {[%emt 0:00:27]} 15. Rhf1 {[%emt 0:04:24]} Rc8 {[%emt 0:02:07]} 16. Kb1 {[%emt 0:00:21]} Be7 {[%emt 0:02:22]} 17. Qe2 {[%emt 0:24:56]} Na5 {[%emt 0:05:27]} 18. Rf3 {[%emt 0:00:57]} Nc4 {[%emt 0:03:20]} 19. Rfd3 {[%emt 0:09:27]} Qc7 {[%emt 0:03:13]} 20. Nd2 {[%emt 0:08:03]} Na5 {[%emt 0:04:02]} 21. Nb3 {[%emt 0:00:22]} Nc4 {[%emt 0:02:30]} 22. Nd2 {[%emt 0:00:05]} Nb6 {[%emt 0:07:09]} 23. Nf1 {[%emt 0:02:05]} Qc5 {[%emt 0:04:12]} 24. Ne3 {[%emt 0:00:20]} Qa5 {[%emt 0:02:16]} 25. f5 {[%emt 0:03:20]} Rc7 {[%emt 0:07:29]} 26. Qd2 {[%emt 0:03:18]} Qc5 {[%emt 0:01:43]} 27. a3 {[%emt 0:06:10]} Rc8 {[%emt 0:01:04]} 28. Ne2 {[%emt 0:02:59]} Bc6 {[%emt 0:17:16]} 29. Bf3 {[%emt 0:05:20]} Na4 {[%emt 0:06:57]} 30. Nd4 {[%emt 0:04:35]} Bd7 {[%emt 0:00:47]} 31. Rb3 {[%emt 0:00:58]} Qc7 {[%emt 0:01:59]} 32. Ne2 {[%emt 0:01:47]} Bc6 {[%emt 0:03:34]} 33. Nf4 {[%emt 0:00:22]} Nc5 {[%emt 0:02:17]} 34. Rc3 {[%emt 0:00:09]} Rgg8 {[%emt 0:00:48]} 35. fxe6 {[%emt 0:02:57]} fxe6 {[%emt 0:00:18]} 36. b4 Na4 {[%emt 0:00:41]} 37. Rb3 {[%emt 0:02:17]} Qd7 {[%emt 0:03:28]} 38. Bg2 {[%emt 0:00:01]} Rg5 {[%emt 0:02:27]} 39. Bh3 {[%emt 0:00:12]} Re5 {[%emt 0:00:59]} 40. Nc4 {[%emt 0:01:49]} Rxe4 {[%emt 0:00:07]} 41. Nxd6 {[%emt 0:00:06]} Qxd6 {[%emt 0:00:24]} 42. Qxd6+ {[%emt 0:00:05]} Bxd6 {[%emt 0:00:02]} 43. Rxd6 {[%emt 0:00:06]} Re1+ {[%emt 0:00:05]} 44. Ka2 {[%emt 0:00:11]} Bd5 {[%emt 0:00:03]} 45. c4 {[%emt 0:01:23]} Rxc4 {[%emt 0:00:49]} 46. Rd8+ {[%emt 0:00:51]} Ka7 {[%emt 0:00:15]} 0-1